bitfinex/quotes_SOLUSD_20241107
["timestamp","ask_amount","ask_price","bid_price","bid_amount"]
[1730954829546,12.28563453,188.52,188.45,14.40754076]
[1730954829744,12.28563453,188.52,188.46,2.12190623]
[1730954830062,27.75413453,188.53,188.46,14.40754076]
[1730954830264,27.75413453,188.53,188.46,12.28563453]
[1730954831165,27.75413453,188.53,188.46,14.40754076]
[1730954831345,27.75413453,188.53,188.47,2.12190623]
[1730954831545,27.75413453,188.53,188.46,12.28563453]
[1730954832068,27.75413453,188.53,188.46,14.40754076]
[1730954832240,27.75413453,188.53,188.46,12.28563453]
[1730954832672,27.75413453,188.53,188.47,2.12190623]
[1730954832967,12.28563453,188.51,188.48,2.12190623]
[1730954833139,12.28563453,188.5,188.45,2.12190623]
[1730954833346,12.28563453,188.49,188.46,2.12190623]
[1730954833655,12.28563453,188.49,188.43,2.12190623]
[1730954833971,12.28563453,188.5,188.44,2.12190623]
[1730954834271,12.28563453,188.5,188.43,12.28563453]
[1730954834566,12.28563453,188.51,188.45,12.28563453]
[1730954834752,27.75413453,188.53,188.46,14.40750642]
[1730954834952,27.75413453,188.53,188.47,14.40750642]
[1730954835262,27.75413453,188.53,188.47,12.28563453]
[1730954835464,27.75413453,188.53,188.46,12.28563453]
[1730954835651,27.75413453,188.53,188.47,14.40750642]
[1730954835854,12.28563453,188.6,188.49,12.28563453]
[1730954835855,12.28563453,188.56,188.49,12.28563453]
[1730954836154,12.28563453,188.56,188.5,2.12187189]
[1730954837164,12.28563453,188.55,188.5,2.12187189]
[1730954837342,12.28563453,188.54,188.5,2.12187189]
[1730954837543,12.28563453,188.53,188.49,2.12187189]
[1730954837757,12.28563453,188.53,188.48,2.12187189]
[1730954838063,12.28563453,188.53,188.49,2.12187189]
[1730954838363,12.28563453,188.53,188.47,14.40722134]
[1730954838555,12.28563453,188.54,188.48,2.12158681]
[1730954838761,12.28563453,188.54,188.49,2.12158681]
[1730954838958,12.28563453,188.54,188.48,2.12158681]
[1730954839276,12.28563453,188.54,188.47,12.28563453]
[1730954839277,12.28563453,188.54,188.49,2.12158681]
[1730954839473,12.28563453,188.54,188.48,2.12158681]
[1730954839764,12.28563453,188.54,188.49,2.12158681]
[1730954839940,12.28563453,188.56,188.5,12.28563453]
[1730954840146,12.28563453,188.56,188.49,14.40722134]
[1730954840459,12.28563453,188.56,188.5,2.12158681]
[1730954840966,12.28563453,188.56,188.49,12.28563453]
[1730954841846,12.28563453,188.56,188.49,14.40722134]
[1730954842061,12.28563453,188.55,188.48,12.28563453]
[1730954842242,12.28563453,188.55,188.49,2.12158681]
[1730954842436,12.28563453,188.55,188.49,14.40722134]
[1730954842655,12.28563453,188.55,188.5,2.12158681]
[1730954842860,15.3289,188.58,188.51,12.28563453]
[1730954843049,12.28563453,188.57,188.5,12.28563453]
[1730954843855,12.28563453,188.57,188.5,14.40722134]
[1730954844055,12.28563453,188.57,188.5,12.28563453]
[1730954844749,27.61453453,188.58,188.51,12.28563453]
[1730954844949,12.28563453,188.57,188.51,12.28563453]
[1730954846858,12.28563453,188.57,188.5,12.28563453]
[1730954847553,12.28563453,188.57,188.5,14.40722134]
[1730954847749,12.28563453,188.57,188.5,12.28563453]
[1730954848059,27.61453453,188.58,188.52,12.28563453]
[1730954848273,17.8037684,188.59,188.53,12.28563453]
[1730954848479,17.8037684,188.59,188.51,12.28563453]
[1730954848480,12.28563453,188.57,188.51,12.28563453]
[1730954848652,12.28563453,188.56,188.5,12.28563453]
[1730954848854,5.51813387,188.59,188.55,12.28563453]
[1730954849053,16.2867,188.62,188.57,12.28563453]
[1730954849257,28.57233453,188.62,188.56,12.28563453]
[1730954849864,28.57233453,188.62,188.55,12.28563453]
[1730954851056,16.2867,188.62,188.56,12.28563453]
[1730954852272,28.57233453,188.62,188.56,12.28563453]
[1730954852485,28.57233453,188.62,188.55,12.28563453]
[1730954854162,12.28563453,188.61,188.54,12.28563453]
[1730954857475,12.28563453,188.58,188.51,12.28563453]
[1730954858465,12.28563453,188.58,188.52,12.28563453]
[1730954860262,12.28563453,188.59,188.52,12.28563453]
[1730954860585,12.28563453,188.58,188.52,12.28563453]
[1730954860756,12.28563453,188.59,188.52,12.28563453]
[1730954860965,12.28563453,188.59,188.53,12.28563453]
[1730954861361,12.28563453,188.6,188.53,12.28563453]
[1730954861880,12.28563453,188.61,188.54,12.28563453]
[1730954862386,12.28563453,188.6,188.53,12.28563453]
[1730954862782,16.2867,188.62,188.53,12.28563453]
[1730954862981,16.2867,188.62,188.51,0.12549]
[1730954862982,12.28563453,188.6,188.54,12.28563453]
[1730954863480,16.2867,188.62,188.52,12.28563453]
[1730954863481,12.28563453,188.59,188.52,12.28563453]
[1730954864368,12.28563453,188.58,188.51,12.28563453]
[1730954864689,12.28563453,188.57,188.51,12.28563453]
[1730954865364,12.28563453,188.58,188.51,12.28563453]
[1730954866090,12.28563453,188.57,188.51,12.28563453]
[1730954866583,12.28563453,188.57,188.51,14.40701973]
[1730954866771,12.28563453,188.57,188.51,12.28563453]
[1730954866973,12.28563453,188.57,188.51,14.40701973]
[1730954867273,12.28563453,188.57,188.51,12.28563453]
[1730954867483,12.28563453,188.57,188.52,2.1213852]
[1730954867779,12.28563453,188.58,188.52,2.1213852]
[1730954868489,12.28563453,188.58,188.51,12.28563453]
[1730954868680,12.28563453,188.58,188.52,2.12143265]
[1730954868987,12.28563453,188.58,188.51,12.28563453]
[1730954869165,12.28563453,188.58,188.52,2.12143265]
[1730954869365,7.85361198,188.58,188.53,2.12143265]
[1730954869576,7.85361198,188.58,188.51,7.85361198]
[1730954869886,7.85361198,188.58,188.52,2.12143502]
[1730954870089,7.85361198,188.58,188.53,2.12143502]
[1730954870396,7.85361198,188.58,188.52,7.85361198]
[1730954870572,7.85361198,188.58,188.53,2.12143265]
[1730954870882,7.85361198,188.58,188.52,7.85361198]
[1730954871186,7.85361198,188.58,188.53,2.12143244]
[1730954871382,7.85361198,188.58,188.54,2.12143244]
[1730954871690,7.85361198,188.58,188.51,7.85361198]
[1730954871873,7.85361198,188.58,188.52,2.12143355]
[1730954872077,7.85361198,188.58,188.53,2.12143355]
[1730954872276,7.85361198,188.58,188.54,2.12143355]
[1730954872489,7.85361198,188.58,188.51,7.85361198]
[1730954872669,7.85361198,188.58,188.52,2.12143329]
[1730954872861,7.85361198,188.58,188.53,2.12143329]
[1730954873066,7.85361198,188.58,188.54,2.12143329]
[1730954873274,7.85361198,188.58,188.51,7.85361198]
[1730954873471,16.2867,188.62,188.46,16.9517]
[1730954873472,16.2867,188.62,188.52,9.97504389]
[1730954873788,7.85361198,188.58,188.53,2.12143191]
[1730954874085,7.85361198,188.58,188.54,2.12143191]
[1730954874393,7.85361198,188.58,188.51,7.85361198]
[1730954874576,7.85361198,188.58,188.52,9.9750448]
[1730954874781,7.85361198,188.58,188.53,2.12143282]
[1730954875092,7.85361198,188.59,188.54,2.12143282]
[1730954875293,20.0,188.61,188.54,7.85361198]
[1730954875471,7.85361198,188.6,188.55,2.12140492]
[1730954875671,7.85361198,188.6,188.53,7.85361198]
[1730954875873,7.85361198,188.58,188.54,2.12140492]
[1730954876088,7.85361198,188.59,188.55,2.12140492]
[1730954876288,7.85361198,188.59,188.56,2.12140492]
[1730954876467,7.85361198,188.59,188.57,2.12140492]
[1730954876784,7.85361198,188.59,188.52,13.14232279]
[1730954876990,7.85361198,188.59,188.53,7.40984545]
[1730954877283,7.85361198,188.59,188.54,2.12113464]
[1730954877595,7.85361198,188.59,188.55,2.12113464]
[1730954877773,7.85361198,188.59,188.56,2.12113464]
[1730954877972,7.85361198,188.59,188.57,2.12113464]
[1730954878172,7.85361198,188.59,188.52,13.14232279]
[1730954878374,7.85361198,188.6,188.53,9.9747453]
[1730954878673,7.85361198,188.6,188.54,2.12113332]
[1730954878873,7.85361198,188.59,188.55,2.12113332]
[1730954879080,20.0,188.61,188.56,2.12113332]
[1730954879392,7.85361198,188.6,188.57,2.12113332]
[1730954879597,7.85361198,188.59,188.53,5.28871081]
[1730954879896,7.85361198,188.58,188.54,2.12113494]
[1730954880069,20.0,188.61,188.53,5.28871081]
[1730954880070,31.41444792,188.6,188.55,2.12113681]
[1730954880276,7.85361198,188.56,188.53,5.28871081]
[1730954880582,37.92589746,188.6,188.52,5.28871081]
[1730954880583,7.85361198,188.54,188.52,5.28871081]
[1730954880765,7.85361198,188.54,188.53,2.12121612]
[1730954881475,20.0,188.59,188.53,2.12121612]
[1730954881680,20.0,188.59,188.54,2.12121612]
[1730954881681,7.85361198,188.55,188.54,2.12121612]
[1730954881984,20.0,188.61,188.54,2.12121612]
[1730954882289,7.85361198,188.55,188.52,5.28871081]
[1730954882493,7.85361198,188.55,188.53,2.12122171]
[1730954882687,7.85361198,188.55,188.54,2.12122171]
[1730954883680,16.2867,188.62,188.54,2.12122171]
[1730954883891,7.85361198,188.57,188.55,2.12122171]
[1730954884107,7.85361198,188.57,188.56,2.12122171]
[1730954885976,7.85361198,188.57,188.56,2.12113644]
[1730954887301,27.85361198,188.57,188.56,2.12113644]
[1730954889405,20.0,188.56,188.45,7.85361198]
[1730954889713,7.85361198,188.52,188.45,7.85361198]
[1730954891499,5.52130874,188.59,188.48,7.85361198]
[1730954891710,7.85361198,188.55,188.48,7.85361198]
[1730954892003,7.85361198,188.53,188.47,7.85361198]
[1730954892186,7.85361198,188.53,188.46,7.85361198]
[1730954892586,7.85361198,188.53,188.47,2.12118807]
[1730954892806,7.85361198,188.53,188.48,2.12118807]
[1730954892997,7.85361198,188.53,188.49,2.12118807]
[1730954893198,7.85361198,188.53,188.5,2.12118807]
[1730954893510,7.85361198,188.53,188.51,2.12118801]
[1730954893687,7.85361198,188.53,188.52,2.12118801]
[1730954896681,7.85361198,188.53,188.52,2.12120295]
[1730954900311,7.85361198,188.53,188.52,2.12119846]
[1730954900810,23.20750239,188.62,188.52,2.12119846]
[1730954900811,21.80786083,188.62,188.52,2.12119846]
[1730954900988,21.80786083,188.62,188.54,7.85361198]
[1730954901197,7.85361198,188.61,188.55,9.97481044]
[1730954901511,7.85361198,188.61,188.56,2.12119846]
[1730954901710,7.85361198,188.6,188.57,2.12119846]
[1730954901910,7.85361198,188.6,188.51,0.1]
[1730954901911,7.85361198,188.61,188.58,2.12119846]
[1730954902092,7.85361198,188.61,188.59,2.12119846]
[1730954902297,7.85361198,188.61,188.6,2.12098052]
[1730954907823,7.85361198,188.61,188.54,7.85361198]
[1730954908117,7.85361198,188.6,188.54,7.85361198]
[1730954908626,7.85361198,188.59,188.52,7.85361198]
[1730954909593,20.0,188.66,188.5,16.7432]
[1730954909594,20.0,188.66,188.53,7.85361198]
[1730954909920,7.85361198,188.59,188.53,7.85361198]
[1730954910098,7.85361198,188.6,188.53,7.85361198]
[1730954910614,7.85361198,188.59,188.53,7.85361198]
[1730954910816,7.85361198,188.58,188.5,16.6432]
[1730954911003,20.0,188.66,188.47,7.85361198]
[1730954911004,7.85361198,188.53,188.47,7.85361198]
[1730954911193,46.90324792,188.6,188.45,18.08081198]
[1730954911194,7.85361198,188.52,188.45,18.08081198]
[1730954911917,7.85361198,188.51,188.46,2.12071528]
[1730954912125,7.85361198,188.52,188.47,2.12071528]
[1730954912295,7.85361198,188.52,188.48,2.12071528]
[1730954912495,20.0,188.57,188.49,2.12071528]
[1730954912695,7.85361198,188.52,188.5,2.12071528]
[1730954912899,7.85361198,188.52,188.51,2.12071528]
[1730954913630,7.85361198,188.53,188.51,2.12071528]
[1730954913835,7.85361198,188.53,188.52,2.12071528]
[1730954914010,20.0,188.57,188.52,2.12071528]
[1730954914327,7.85361198,188.54,188.53,2.12071528]
[1730954916911,27.85361198,188.54,188.53,2.12071528]
[1730954917519,7.85361198,188.54,188.53,2.12071528]
[1730954918109,20.0,188.57,188.53,2.12071528]
[1730954918322,7.85361198,188.54,188.47,7.85361198]
[1730954918617,20.0,188.57,188.48,2.12102428]
[1730954918829,7.85361198,188.54,188.49,2.12102428]
[1730954919004,20.0,188.57,188.5,2.12102428]
[1730954919206,7.85361198,188.54,188.51,2.12102428]
[1730954919421,20.0,188.57,188.52,2.12102428]
[1730954919700,20.0,188.57,188.53,2.12102428]
[1730954919701,7.85361198,188.54,188.53,2.12102428]
[1730954920126,20.0,188.57,188.53,2.12102428]
[1730954920311,6.3404,188.58,188.54,2.12102428]
[1730954920524,7.85361198,188.57,188.55,2.12102428]
[1730954920704,7.85361198,188.57,188.56,2.12102428]
[1730954920905,7.85361198,188.58,188.56,2.12102428]
[1730954921104,7.85361198,188.58,188.57,2.12102428]
[1730954921323,7.85361198,188.59,188.57,2.12102428]
[1730954921507,15.4888,188.6,188.58,2.12102428]
[1730954921703,23.34241198,188.6,188.59,2.12102428]
[1730954922112,15.4888,188.6,188.59,2.12102428]
[1730954922319,7.85361198,188.61,188.59,2.12102428]
[1730954922519,7.85361198,188.61,188.6,2.12102428]
[1730954923229,27.85361198,188.61,188.6,2.12102428]
[1730954923527,7.85361198,188.62,188.6,2.12102428]
[1730954923707,7.85361198,188.62,188.61,2.12102428]
[1730954924827,15.322,188.64,188.61,2.12102428]
[1730954925124,23.17561198,188.64,188.62,2.12102428]
[1730954925302,23.17561198,188.64,188.57,7.85361198]
[1730954925508,21.72563766,188.67,188.58,2.12051644]
[1730954925830,21.72563766,188.67,188.59,2.12051644]
[1730954926006,20.0,188.66,188.6,2.12051644]
[1730954926211,20.0,188.66,188.54,0.1]
[1730954926212,27.85361198,188.66,188.61,2.12051644]
[1730954926532,27.85361198,188.66,188.62,2.12051644]
[1730954926730,6.5945,188.68,188.63,2.12051644]
[1730954926731,7.85361198,188.68,188.63,2.12051644]
[1730954926913,16.0261,188.71,188.64,2.12051644]
[1730954927116,23.87971198,188.71,188.65,2.12051644]
[1730954927313,7.85361198,188.71,188.66,2.11997665]
[1730954927521,7.85361198,188.72,188.65,7.85361198]
[1730954927811,7.85361198,188.72,188.66,2.11990293]
[1730954928007,7.85361198,188.73,188.66,7.85361198]
[1730954928225,7.85361198,188.73,188.67,9.97348619]
[1730954928427,7.85361198,188.73,188.67,7.85361198]
[1730954928627,7.85361198,188.74,188.67,7.85361198]
[1730954928832,7.85361198,188.73,188.66,7.85361198]
[1730954929139,7.85361198,188.73,188.67,2.11966183]
[1730954929355,12.24975139,188.73,188.67,2.11966183]
[1730954929707,12.24975139,188.73,188.68,2.11966183]
[1730954929912,12.24975139,188.73,188.67,14.36941322]
[1730954930219,12.24975139,188.73,188.68,2.11966183]
[1730954930421,16.4676144,188.76,188.68,12.37524139]
[1730954930422,12.24975139,188.74,188.68,12.37524139]
[1730954930642,12.24975139,188.75,188.69,12.24975139]
[1730954931134,12.69126579,188.76,188.69,12.24975139]
[1730954931431,12.69126579,188.76,188.7,0.12549]
[1730954931621,0.4415144,188.76,188.7,12.37524139]
[1730954931822,0.4415144,188.76,188.73,0.12549]
[1730954932420,0.4415144,188.76,188.73,12.24975139]
[1730954932616,0.4415144,188.76,188.74,12.37524139]
[1730954933228,0.4415144,188.76,188.75,12.37524139]
[1730954934523,0.4415144,188.76,188.72,2.11859877]
[1730954934726,0.4415144,188.76,188.72,0.12549]
[1730954935110,0.4415144,188.76,188.72,2.24408877]
[1730954935839,0.4415144,188.76,188.71,12.37524139]
[1730954936519,0.4415144,188.76,188.71,0.12549]
[1730954936719,0.4415144,188.76,188.69,2.21859877]
[1730954936720,12.24975139,188.75,188.69,14.36835016]
[1730954936935,12.24975139,188.75,188.7,20.0]
[1730954937139,12.24975139,188.75,188.7,22.11859877]
[1730954937838,12.24975139,188.74,188.7,2.11859877]
[1730954938139,0.4415144,188.76,188.69,0.12549]
[1730954938319,0.4415144,188.76,188.69,12.37524139]
[1730954938637,12.24975139,188.73,188.68,2.11859877]
[1730954938940,12.24975139,188.72,188.67,2.11859877]
[1730954939325,12.24975139,188.72,188.66,22.47695139]
[1730954939513,12.24975139,188.72,188.67,0.12549]
[1730954939716,12.24975139,188.72,188.67,20.12549]
[1730954939948,12.24975139,188.72,188.67,22.24408877]
[1730954940235,12.24975139,188.69,188.67,2.11859877]
[1730954940448,12.24975139,188.69,188.65,2.11859877]
[1730954940614,12.24975139,188.68,188.62,14.36835016]
[1730954940816,12.24975139,188.69,188.63,14.36835016]
[1730954941138,12.24975139,188.7,188.64,0.12549]
[1730954941440,12.24975139,188.69,188.64,0.12549]
[1730954943122,12.24975139,188.67,188.6,2.11859877]
[1730954943439,15.8175,188.74,188.6,2.11859877]
[1730954943440,12.24975139,188.63,188.6,2.11859877]
[1730954943648,12.24975139,188.63,188.57,12.24975139]
[1730954943649,12.24975139,188.63,188.58,2.11859877]
[1730954943939,12.24975139,188.62,188.56,12.24975139]
[1730954944525,6.575,188.68,188.58,12.24975139]
[1730954944846,12.24975139,188.66,188.59,12.24975139]
[1730954945049,12.24975139,188.66,188.6,20.0]
[1730954945256,12.24975139,188.66,188.6,2.11859877]
[1730954945541,12.24975139,188.66,188.59,12.24975139]
[1730954946044,12.24975139,188.66,188.6,0.12549]
[1730954946227,12.24975139,188.65,188.59,0.12549]
[1730954946545,12.24975139,188.63,188.57,14.36835016]
[1730954946839,12.24975139,188.59,188.55,2.11859877]
[1730954947141,12.24975139,188.57,188.51,14.36835016]
[1730954947345,12.24975139,188.57,188.52,2.11859877]
[1730954947521,12.24975139,188.57,188.52,0.12549]
[1730954947721,12.24975139,188.59,188.52,14.49384016]
[1730954947922,12.24975139,188.59,188.52,12.24975139]
[1730954948337,12.24975139,188.61,188.54,12.24975139]
[1730954949042,12.24975139,188.61,188.55,12.24975139]
[1730954949358,12.24975139,188.62,188.55,12.24975139]
[1730954949927,12.24975139,188.62,188.56,0.12549]
[1730954950125,16.205,188.65,188.56,0.12549]
[1730954950126,12.24975139,188.63,188.57,12.24975139]
[1730954950747,12.24975139,188.63,188.57,5.22824011]
[1730954951047,12.24975139,188.59,188.52,12.24975139]
[1730954951246,12.24975139,188.59,188.55,5.22862861]
[1730954951439,12.24975139,188.6,188.55,5.22862861]
[1730954952448,12.24975139,188.59,188.55,5.22862861]
[1730954952956,12.24975139,188.59,188.55,10.4604767]
[1730954953336,12.24975139,188.6,188.55,5.23023835]
[1730954953524,12.24975139,188.61,188.55,5.23023835]
[1730954953725,12.24975139,188.63,188.56,17.60547974]
[1730954954025,12.24975139,188.62,188.56,5.35572835]
[1730954955749,12.24975139,188.62,188.56,0.12549]
[1730954958846,12.24975139,188.6,188.53,12.24975139]
[1730954959234,12.24975139,188.59,188.52,12.24975139]
[1730954961749,18.58265139,188.59,188.51,0.12549]
[1730954962055,18.58265139,188.59,188.52,12.24975139]
[1730954962352,12.24975139,188.56,188.49,12.24975139]
[1730954962550,12.24975139,188.55,188.49,12.24975139]
[1730954963142,12.24975139,188.55,188.46,0.07921679]
[1730954963143,12.24975139,188.55,188.46,0.20470679]
[1730954963337,12.24975139,188.55,188.49,0.12549]
[1730954963542,12.24975139,188.55,188.49,12.37524139]
[1730954963847,12.24975139,188.55,188.46,0.20470679]
[1730954964168,12.24975139,188.55,188.49,0.12549]
[1730954964662,28.38995139,188.56,188.5,12.24975139]
[1730954964856,16.1402,188.56,188.51,12.24975139]
[1730954965058,16.1402,188.56,188.52,12.24975139]
[1730954965649,12.24975139,188.58,188.52,12.24975139]
[1730954965856,12.24975139,188.57,188.5,12.24975139]
[1730954966054,12.24975139,188.57,188.51,0.12549]
[1730954967746,12.24975139,188.56,188.49,12.24975139]
[1730954968069,12.24975139,188.56,188.5,20.0]
[1730954968362,12.24975139,188.56,188.49,12.24975139]
[1730954969169,12.24975139,188.55,188.48,12.24975139]
[1730954970344,12.24975139,188.5,188.42,5.49797843]
[1730954970659,12.24975139,188.47,188.4,12.24975139]
[1730954971044,16.538,188.53,188.4,12.24975139]
[1730954971045,12.24975139,188.46,188.4,12.24975139]
[1730954971245,12.24975139,188.45,188.38,12.24975139]
[1730954971664,12.24975139,188.45,188.39,12.24975139]
[1730954972272,6.6589,188.51,188.39,12.24975139]
[1730954972449,6.6589,188.51,188.4,0.12549]
[1730954972768,12.24975139,188.41,188.33,6.2257]
[1730954972978,12.24975139,188.42,188.35,12.24975139]
[1730954973265,12.24975139,188.43,188.37,0.12549]
[1730954973566,12.24975139,188.43,188.37,12.24975139]
[1730954973950,28.23285139,188.44,188.37,12.24975139]
[1730954974569,12.24975139,188.43,188.37,20.0]
[1730954975066,28.23285139,188.44,188.37,32.24975139]
[1730954975273,28.23285139,188.44,188.38,12.24975139]
[1730954975449,28.23285139,188.44,188.32,0.22549]
[1730954975450,32.24975139,188.43,188.32,0.22549]
[1730954975648,12.24975139,188.42,188.35,12.24975139]
[1730954976145,12.24975139,188.37,188.29,6.0639]
[1730954976351,12.24975139,188.36,188.28,0.144258]
[1730954976566,12.24975139,188.36,188.28,12.39400939]
[1730954976758,12.24975139,188.37,188.29,12.37524139]
[1730954976961,12.24975139,188.36,188.29,12.37524139]
[1730954977459,12.24975139,188.37,188.29,12.37524139]
[1730954977861,12.24975139,188.38,188.31,12.24975139]
[1730954978076,23.776884,188.42,188.29,0.12549]
[1730954978077,12.24975139,188.37,188.3,12.24975139]
[1730954979974,12.24975139,188.38,188.31,12.24975139]
[1730954980171,12.24975139,188.38,188.29,0.12549]
[1730954980471,12.24975139,188.37,188.3,12.24975139]
[1730954981572,12.24975139,188.38,188.31,12.24975139]
[1730954982155,12.24975139,188.39,188.32,12.24975139]
[1730954982472,12.24975139,188.4,188.33,12.24975139]
[1730954982782,12.24975139,188.41,188.34,12.24975139]
[1730954984879,12.24975139,188.39,188.29,0.12549]
[1730954985083,12.24975139,188.38,188.31,12.24975139]
[1730954985375,12.24975139,188.38,188.28,0.144258]
[1730954985565,12.24975139,188.38,188.32,12.24975139]
[1730954987567,12.24975139,188.39,188.32,12.24975139]
[1730954988078,12.24975139,188.39,188.33,5.301]
[1730954988271,12.24975139,188.39,188.32,12.24975139]
[1730954990457,12.24975139,188.39,188.33,12.24975139]
[1730954990661,12.24975139,188.4,188.33,12.24975139]
[1730954990862,12.24975139,188.41,188.34,12.24975139]
[1730954991085,12.24975139,188.41,188.29,0.20470679]
[1730954991086,12.24975139,188.41,188.35,12.24975139]
[1730954991481,12.24975139,188.41,188.34,12.24975139]
[1730954991880,12.24975139,188.41,188.35,12.24975139]
[1730954992082,12.24975139,188.41,188.34,12.24975139]
[1730954994190,12.24975139,188.4,188.33,12.24975139]
[1730954995870,12.24975139,188.39,188.32,12.24975139]
[1730954996070,12.24975139,188.38,188.32,12.24975139]
[1730954997584,12.24975139,188.39,188.32,12.24975139]
[1730954998772,12.24975139,188.38,188.32,12.24975139]
[1730954998968,12.24975139,188.39,188.33,12.24975139]
[1730954999683,12.24975139,188.39,188.32,12.24975139]
[1730955000496,12.24975139,188.42,188.35,12.24975139]
[1730955000976,18.74075139,188.43,188.36,12.24975139]
[1730955001394,12.24975139,188.5,188.3,17.72996818]
[1730955001395,15.6284,188.49,188.42,12.24975139]
[1730955001694,15.6284,188.49,188.33,6.64329]
[1730955001695,15.6284,188.49,188.35,23.776884]
[1730955001878,15.6284,188.49,188.34,20.07921679]
[1730955001879,15.6284,188.49,188.36,20.0]
[1730955002075,15.6284,188.49,188.38,20.0]
[1730955002393,15.6284,188.49,188.44,12.24975139]
[1730955002898,15.6284,188.49,188.45,12.24975139]
[1730955003394,15.6284,188.49,188.4,12.24975139]
[1730955003395,15.6284,188.49,188.46,12.24975139]
[1730955003599,15.6284,188.54,188.48,12.24975139]
[1730955003976,27.87815139,188.54,188.48,12.24975139]
[1730955004401,15.6284,188.54,188.51,12.24975139]
[1730955004577,12.24975139,188.57,188.51,12.24975139]
[1730955005993,15.6284,188.59,188.47,0.07921679]
[1730955006197,15.6284,188.59,188.55,12.24975139]
[1730955006578,15.6284,188.59,188.56,12.24975139]
[1730955006778,6.5614,188.64,188.58,12.24975139]
[1730955006779,34.63945139,188.64,188.58,12.24975139]
[1730955007084,34.63945139,188.64,188.5,22.65616818]
[1730955007085,15.8283,188.64,188.59,12.24975139]
[1730955007497,28.07805139,188.64,188.53,0.12549]
[1730955007705,12.24975139,188.62,188.56,12.24975139]
[1730955007878,28.07805139,188.64,188.58,12.24975139]
[1730955008092,28.07805139,188.64,188.53,20.12549]
[1730955008286,28.07805139,188.64,188.58,12.24975139]
[1730955008482,12.24975139,188.63,188.57,12.24975139]
[1730955008710,12.24975139,188.6,188.54,12.24975139]
[1730955008999,12.24975139,188.61,188.54,12.24975139]
[1730955009199,15.8283,188.64,188.51,44.002374]
[1730955009405,15.8283,188.64,188.51,43.98159079]
[1730955009788,12.24975139,188.63,188.56,12.24975139]
[1730955010701,12.24975139,188.63,188.57,12.24975139]
[1730955010908,28.07805139,188.64,188.57,12.24975139]
[1730955011109,12.24975139,188.63,188.57,12.24975139]
[1730955011283,12.24975139,188.62,188.55,12.24975139]
[1730955011489,12.24975139,188.61,188.55,12.24975139]
[1730955012102,12.24975139,188.62,188.55,12.24975139]
[1730955012387,12.24975139,188.6,188.54,12.24975139]
[1730955012793,12.24975139,188.6,188.52,2.12044351]
[1730955012794,12.24975139,188.6,188.53,12.24975139]
[1730955013807,12.24975139,188.6,188.54,12.24975139]
[1730955013996,12.24975139,188.61,188.55,12.24975139]
[1730955014207,12.24975139,188.61,188.51,2.24593351]
[1730955014208,12.24975139,188.6,188.51,2.24593351]
[1730955014507,12.24975139,188.6,188.53,12.24975139]
[1730955014709,12.24975139,188.6,188.54,12.24975139]
[1730955014909,12.24975139,188.61,188.54,12.24975139]
[1730955015407,12.24975139,188.6,188.54,12.24975139]
[1730955016807,12.24975139,188.61,188.55,12.24975139]
[1730955016998,12.24975139,188.63,188.57,12.24975139]
[1730955017208,28.07805139,188.64,188.57,12.24975139]
[1730955017412,15.8283,188.64,188.59,12.24975139]
[1730955018601,28.07805139,188.64,188.58,12.24975139]
[1730955018805,12.24975139,188.63,188.57,12.24975139]
[1730955018996,12.24975139,188.62,188.56,12.24975139]
[1730955019704,12.24975139,188.61,188.56,20.0]
[1730955019898,12.24975139,188.62,188.56,34.36996489]
[1730955020104,12.24975139,188.63,188.57,14.36996489]
[1730955020411,12.24975139,188.62,188.57,2.1202135]
[1730955020619,12.24975139,188.62,188.55,12.24975139]
[1730955021119,12.24975139,188.61,188.55,12.24975139]
[1730955021297,12.24975139,188.59,188.54,2.1202135]
[1730955021498,12.24975139,188.59,188.52,12.24975139]
[1730955022610,12.24975139,188.6,188.54,12.24975139]
[1730955024717,12.24975139,188.55,188.52,2.1202135]
[1730955024926,12.24975139,188.54,188.49,2.1202135]
[1730955025221,12.24975139,188.54,188.48,12.24975139]
[1730955025720,12.24975139,188.53,188.47,12.37524139]
[1730955025924,12.24975139,188.52,188.47,2.2457035]
[1730955026223,12.24975139,188.52,188.47,0.12549]
[1730955026734,12.24975139,188.52,188.46,14.36996489]
[1730955026916,12.24975139,188.52,188.46,12.24975139]
[1730955027502,15.7552,188.55,188.46,12.24975139]
[1730955027812,12.24975139,188.54,188.47,12.37524139]
[1730955028019,28.00495139,188.55,188.49,12.24975139]
[1730955028405,15.7552,188.55,188.51,12.24975139]
[1730955028619,12.24975139,188.58,188.52,12.24975139]
[1730955029525,12.24975139,188.58,188.53,0.12549]
[1730955030906,12.24975139,188.6,188.54,12.24975139]
[1730955031103,28.00495139,188.61,188.54,12.24975139]
[1730955031301,28.00495139,188.61,188.51,2.12068786]
[1730955031302,12.24975139,188.62,188.56,12.24975139]
[1730955031724,12.24975139,188.63,188.57,12.24975139]
[1730955031921,12.24975139,188.64,188.57,12.24975139]
[1730955032417,12.24975139,188.64,188.58,12.24975139]